fUSD/lending_fUSD_20240103
["ID","MTS","AMOUNT","RATE_DAILY","PERIOD"]
[309980049,1704257441101,-500.0,0.00033397,2]
[309980050,1704257441111,-500.0,0.00033397,2]
[309980051,1704257441120,-500.0,0.00033397,2]
[309980052,1704257441129,-500.0,0.00033397,2]
[309980053,1704257441138,-500.0,0.00033397,2]
[309980054,1704257441147,-500.0,0.00033397,2]
[309980055,1704257441157,-500.0,0.00033397,2]
[309980056,1704257441166,-500.0,0.00033397,2]
[309980057,1704257441176,-500.0,0.00033397,2]
[309980058,1704257441186,-500.0,0.00033397,2]
[309980059,1704257441194,-500.0,0.00033397,2]
[309980060,1704257441204,-500.0,0.00033397,2]
[309980061,1704257441213,-500.0,0.00033397,2]
[309980062,1704257441222,-510.28417537,0.00033397,2]
[309980063,1704257441231,-540.15165072,0.00033397,2]
[309980064,1704257441240,-500.0,0.00033397,2]
[309980065,1704257441249,-500.0,0.00033397,2]
[309980066,1704257441258,-500.0,0.00033397,2]
[309980067,1704257441268,-613.57969012,0.00033397,2]
[309980068,1704257441277,-500.0,0.00033397,2]
[309980069,1704257441286,-500.0,0.00033397,2]
[309980070,1704257441295,-267.07914775,0.00033397,2]
[309980071,1704257441304,-500.0,0.00033397,2]
[309980072,1704257441313,-500.0,0.00033397,2]
[309980073,1704257441323,-500.0,0.00033397,2]
[309980074,1704257441334,-1130.88,0.00033397,2]
[309980075,1704257441344,-500.0,0.00033397,2]
[309980076,1704257441356,-500.0,0.00033397,2]
[309980077,1704257441366,-1148.29,0.00033397,2]
[309980078,1704257441377,-588.0,0.00033397,2]
[309980079,1704257441387,-500.0,0.00033397,2]
[309980080,1704257441397,-500.0,0.00033397,2]
[309980081,1704257441409,-500.0,0.00033397,2]
[309980082,1704257441419,-500.0,0.00033397,2]
[309980083,1704257441430,-500.0,0.00033397,2]
[309980084,1704257441439,-554.05352007,0.00033397,2]
[309980085,1704257441448,-500.0,0.00033397,2]
[309980086,1704257441457,-521.80694885,0.00033397,2]
[309980087,1704257441466,-500.0,0.00033397,2]
[309980088,1704257441478,-500.0,0.00033397,2]
[309980089,1704257441487,-500.0,0.00033397,2]
[309980090,1704257441496,-551.86724417,0.00033397,2]
[309980091,1704257441505,-500.0,0.00033397,2]
[309980092,1704257441514,-500.0,0.00033397,2]
[309980093,1704257441524,-195.74,0.00033397,2]
[309980094,1704257441533,-500.0,0.00033397,2]
[309980095,1704257441542,-500.0,0.00033397,2]
[309980096,1704257441551,-158.39572693,0.00033397,2]
[309980097,1704257441560,-500.0,0.00033397,2]
[309980098,1704257441572,-500.0,0.00033397,2]
[309980099,1704257441582,-345.40103,0.00033398,2]
[309980100,1704257441592,-10329.3427,0.00033398,2]
[309980101,1704257441601,-8429.98973548,0.00033398,2]
[309980102,1704257441615,-4623.05060836,0.00033398,2]
[309980103,1704257441627,-7828.87696631,0.00033398,2]
[309980104,1704257441639,-7989.9995,0.00033398,2]
[309980105,1704257441650,-8575.73370409,0.00033398,2]
[309980106,1704257441677,-155.0,0.00030166,2]
[309980107,1704257441687,-4890.78982251,0.00033398,2]
[309980108,1704257441701,-16505.94512987,0.00033398,2]
[309980109,1704257442468,-72715.65868593,0.00033398,2]
[309980111,1704257442636,-8844.97620721,0.00033398,2]
[309980112,1704257444571,-231.45,0.00032976,15]
[309980113,1704257444581,-500.0,0.00033396,2]
[309980114,1704257444590,-1879.99735903,0.00033398,2]
[309980115,1704257444603,-664.00152642,0.00033398,2]
[309980116,1704257445263,-332.0149,0.00032749,2]
[309980117,1704257445273,-444.98259995,0.00033398,2]
[309980118,1704257445321,-1000.0,0.00033398,2]
[309980128,1704257445540,-651.68479582,0.00033398,2]
[309980129,1704257445554,-465.86909738,0.00033398,2]
[309980130,1704257445598,-373.41198185,0.00033398,2]
[309980131,1704257445610,-3593.39693038,0.00033398,2]
[309980132,1704257445622,-1326.5773138,0.00033398,2]
[309980133,1704257445654,-893.81106938,0.00033398,2]
[309980134,1704257445710,-1314.53089646,0.00033398,2]
[309980135,1704257445873,-500.0,0.00033397,2]
[309980136,1704257445883,-1828.61335558,0.00033398,2]
[309980137,1704257555427,440.6890803,0.00022078,2]
[309980138,1704257558598,8433.99912371,0.00021848,7]
[309980139,1704257573190,693.37623314,0.00022078,2]
[309980140,1704257631453,193.25,0.00028972,120]
[309980141,1704257647560,499.999999,0.0002,2]
[309980142,1704257664240,14832.0,0.00022,2]
[309980144,1704257695504,1273.89360077,0.0002,5]
[309980145,1704257713537,1273.89360077,0.0002,5]
[309980146,1704257731533,278.4388778,0.0002,5]
[309980162,1704258030809,366.84,0.00021656,2]
[309980163,1704258221298,786.73258132,0.00020697,5]
[309980164,1704258225521,269.95716749,0.00020696,2]
[309980165,1704258397876,2000.0,0.0002237,2]
[309980166,1704258428244,653.08,0.00022427,2]
[309980167,1704258475469,156.67,0.00022465,2]
[309980168,1704258479144,250.0,0.00022366,2]
[309980169,1704258479956,348.49,0.00020448,2]
[309980170,1704258544368,372.13,0.00022371,2]
[309980171,1704258546422,13855.54,0.00022371,2]
[309980174,1704258617720,223.69,0.00022371,2]
[309980175,1704258618630,263.99964119,0.00022,2]
[309980185,1704258631815,-222.29996028,0.0002254,4]
[309980186,1704258631825,-321.20551196,0.0002254,2]
[309980187,1704258631866,-1232.00144346,0.0002254,2]
[309980188,1704258631925,-1572.09871997,0.0002254,2]
[309980189,1704258631983,-539.42300977,0.0002254,2]
[309980190,1704258631995,-476.23056,0.0002254,2]
[309980202,1704258637744,-704.13939175,0.0002254,2]
[309980203,1704258637798,-830.53084178,0.0002254,2]
[309980204,1704258637807,-211.0113246,0.00022541,2]
[309980205,1704258637817,-4611.87269733,0.00022541,2]
[309980206,1704258637826,-157.12425371,0.00022541,2]
[309980207,1704258637835,-300.0,0.00022544,2]
[309980208,1704258637845,-1275.74,0.00022549,2]
[309980209,1704258637854,-211.49,0.00022612,2]
[309980210,1704258637864,-440.59,0.00022708,2]
[309980211,1704258637873,-252.11,0.00022712,2]
[309980212,1704258637882,-348.49,0.00022712,2]
[309980213,1704258637892,-499.99,0.00022799,2]
[309980214,1704258637901,-581.39,0.00022807,2]
[309980215,1704258637911,-5028.1794,0.000229,2]
[309980216,1704258637921,-292.70894999,0.000229,2]
[309980217,1704258637933,-252.62877853,0.000229,2]
[309980218,1704258637943,-8000.73,0.000229,2]
[309980219,1704258637952,-370.2748043,0.000229,2]
[309980220,1704258637962,-190.05557831,0.0002293,2]
[309980221,1704258637971,-2017.22485684,0.0002293,2]
[309980222,1704258637981,-151.16726685,0.0002299,2]
[309980223,1704258637991,-273.37604111,0.00022997,2]
[309980224,1704258638001,-867.43631562,0.00022997,4]
[309980225,1704258638011,-1032.36054589,0.00022998,2]
[309980226,1704258638021,-155.32870263,0.00022998,2]
[309980227,1704258638031,-279.53720518,0.00022998,2]
[309980228,1704258638041,-742.32650074,0.00022998,2]
[309980229,1704258638050,-249.39139602,0.00022998,2]
[309980230,1704258638060,-1387.13372535,0.00022998,2]
[309980231,1704258638070,-221.36842182,0.00022998,2]
[309980232,1704258638079,-1020.98738794,0.00022998,2]
[309980233,1704258638089,-155.84772269,0.00022999,2]
[309980234,1704258638099,-8984.89490505,0.00022999,2]
[309980235,1704258638114,-278.90348661,0.00022999,2]
[309980236,1704258638123,-213.55651339,0.00022999,2]
[309980237,1704258638135,-4188.37702994,0.00022999,2]
[309980238,1704258638148,-710.65,0.00022999,2]
[309980239,1704258638165,-468.37708486,0.00022999,2]
[309980240,1704258638200,-8463.98988071,0.00022999,2]
[309980241,1704258638210,-9401.42,0.00022999,2]
[309980242,1704258638219,-622693.61043378,0.00023,2]
[309980243,1704258638231,-146940.91572848,0.00023,2]
[309980245,1704258638241,-156180.3538785,0.00023,2]
[309980248,1704258640245,-326.98767893,0.00023,2]
[309980249,1704258640257,-1679.07687545,0.00023,2]
[309980250,1704258640307,-1835.14410164,0.00023,2]
[309980251,1704258640686,-549.53,0.00023,2]
[309980252,1704258640698,-23585.91901372,0.00023,2]
[309980255,1704258642777,-11539.83363788,0.00023,2]
[309980256,1704258642792,-523.7000001,0.00023,2]
[309980257,1704258642904,-471.06540919,0.00023,2]
[309980258,1704258642915,-500.0,0.00023,2]
[309980259,1704258642927,-5375.34531463,0.00023,2]
[309980260,1704258643057,-373.45767937,0.00023,2]
[309980261,1704258646016,-1228.27199924,0.00023,2]
[309980262,1704258646065,-623.35,0.00023,2]
[309980264,1704258778784,-173.49916985,0.00022761,2]
[309980265,1704258778813,-361.05118527,0.00022761,2]
[309980266,1704258778842,-214.47459225,0.00022762,2]
[309980267,1704258778870,-155.0,0.00022763,2]
[309980268,1704258778900,-1041.50170874,0.00022763,2]
[309980269,1704258778925,-1133.536065,0.00022764,2]
[309980270,1704258778952,-403.41499984,0.00022765,2]
[309980271,1704258778981,-309.16657707,0.00022765,2]
[309980272,1704258779012,-693.59855735,0.00022766,2]
[309980273,1704258779039,-257.26886054,0.00022768,2]
[309980274,1704258779066,-197.98,0.00022789,2]
[309980275,1704258779092,-1107.21305108,0.00022898,2]
[309980276,1704258779121,-881.7444,0.000229,2]
[309980277,1704258779147,-1632.3267,0.000229,2]
[309980278,1704258779173,-382.06705801,0.000229,2]
[309980279,1704258779200,-256.12033118,0.000229,2]
[309980280,1704258779431,-417.95209149,0.00022987,2]
[309980281,1704258779460,-865.31063193,0.00022997,2]
[309980282,1704258779489,-156.29087205,0.00022998,2]
[309980283,1704258779517,-354.60259077,0.00022998,2]
[309980284,1704258779546,-253.03478513,0.00022998,2]
[309980285,1704258779571,-364.28657799,0.00022998,2]
[309980286,1704258779597,-3313.16325902,0.00022998,2]
[309980287,1704258779625,-300.69965138,0.00022998,2]
[309980288,1704258779650,-418.34918944,0.00022998,2]
[309980289,1704258779677,-484.17224842,0.00022998,2]
[309980290,1704258779705,-2697.56907324,0.00022998,2]
[309980291,1704258779729,-302.21498595,0.00022998,2]
[309980292,1704258779755,-1852.14778372,0.00022998,2]
[309980293,1704258779780,-260.53596921,0.00022998,2]
[309980294,1704258779805,-211.806731,0.00022999,2]
[309980295,1704258779831,-3866.53307652,0.00022999,2]
[309980296,1704258779855,-3177.35057055,0.00022999,2]
[309980297,1704258779885,-271504.01665601,0.00023,2]
[309980298,1704258824298,-222.29996028,0.0002276,4]
[309980299,1704258824323,-403.36098106,0.00022998,2]
[309980300,1704258824350,-1076.49621011,0.00022998,2]
[309980301,1704258824379,-361.95389228,0.00022998,2]
[309980302,1704258824405,-960.40187854,0.00022998,2]
[309980303,1704258824432,-207.9220019,0.00022998,2]
[309980304,1704258824457,-197.91212264,0.00022999,2]
[309980305,1704258824486,-174.97988338,0.00022999,2]
[309980306,1704258824511,-695.95799169,0.00022999,2]
[309980307,1704258824536,-371.82785863,0.00022999,2]
[309980308,1704258824565,-202.9641373,0.00022999,2]
[309980309,1704258824591,-11167.19978592,0.00023,2]
[309980310,1704258824617,-3217.3172653,0.00023,2]
[309980311,1704258824646,-217.56881384,0.00023,2]
[309980312,1704258824673,-10044.3569888,0.00023,5]
[309980313,1704258840073,270.82831479,0.00023,2]
[309980314,1704258842855,3217.3172653,0.00023,2]
[309980315,1704258859072,625.6747193,0.00023,2]
[309980316,1704258905667,2000.0,0.00023,2]
[309980317,1704258910813,200.0,0.00023,2]
[309980318,1704258961510,11269.97481725,0.0002277,2]
[309980319,1704259039971,1000.0,0.00022999,5]
[309980320,1704259040263,1000.0,0.00022999,5]
[309980321,1704259207824,200.0,0.00023,2]
[309980322,1704259256814,6050.41908392,0.00022999,2]
[309980323,1704259260006,150.00000001,0.00022699,2]
[309980324,1704259260460,268.77592193,0.00022999,2]
[309980325,1704259285059,531.79797059,0.00023,2]
[309980326,1704259293724,23671.235,0.0002277,2]
[309980327,1704259294172,15857.7972063,0.0002277,2]
[309980328,1704259336931,-217.28450417,0.00022526,2]
[309980329,1704259336958,-222.29996028,0.00022527,4]
[309980330,1704259336984,-2263.96943386,0.00022527,2]
[309980331,1704259337013,-277.96277619,0.00022528,2]
[309980332,1704259337039,-207.0,0.00022529,2]
[309980333,1704259337066,-7813.4387937,0.0002277,2]
[309980334,1704259337092,-23671.236,0.0002277,2]
[309980335,1704259337117,-23671.236,0.0002277,2]
[309980336,1704259337144,-23671.236,0.0002277,2]
[309980337,1704259337170,-531.22608607,0.00023,2]
[309980338,1704259350657,694.39902142,0.00022768,2]
[309980342,1704259563890,193.25,0.00026669,120]
[309980361,1704259831897,-222.29996028,0.00023012,4]
[309980362,1704259831907,-220.72139903,0.00023013,2]
[309980363,1704259831917,-27.75549498,0.0002313,2]
[309980364,1704259831929,-383.98604129,0.0002313,2]
[309980365,1704259831939,-157.72055281,0.0002313,2]
[309980366,1704259831949,-150.9448467,0.0002323,2]
[309980367,1704259832071,-1849.0551533,0.0002323,2]
[309980368,1704259832081,-200.0,0.0002323,2]
[309980369,1704259832090,-200.0,0.0002323,2]
[309980370,1704259832100,-339.55191395,0.00023462,2]
[309980371,1704259832124,-1660.44808605,0.00023462,2]
[309980372,1704259832134,-200.0,0.00023462,2]
[309980373,1704259832145,-56.53899523,0.00023462,2]
[309980374,1704259832157,-143.46100477,0.00023462,2]
[309980375,1704259832166,-577.60485964,0.00023697,2]
[309980376,1704259832178,-357.46371413,0.00023697,2]
[309980377,1704259832226,-1064.93142623,0.00023697,2]
[309980378,1704259832235,-16.29931576,0.00023697,2]
[309980379,1704259832247,-183.70068424,0.00023697,2]
[309980380,1704259832257,-200.0,0.00023697,2]
[309980381,1704259832268,-157.72055272,0.00023934,2]
[309980382,1704259832278,-1050.39546513,0.00023934,2]
[309980401,1704259837954,-207.68498122,0.00023934,2]
[309980402,1704259837963,-200.0,0.00023934,2]
[309980403,1704259837973,-299.99,0.00023934,7]
[309980404,1704259837982,-499.99,0.00023934,2]
[309980405,1704259837991,-153.48,0.0002432,2]
[309980406,1704259838001,-153.48,0.0002459,2]
[309980407,1704259838011,-157.72055272,0.00024738,2]
[309980408,1704259838022,-153.48,0.0002486,2]
[309980409,1704259838032,-1244.4653011,0.00025,2]
[309980410,1704259838041,-4288.91439019,0.0002509,2]
[309980411,1704259838051,-153.48,0.0002513,2]
[309980412,1704259838061,-348.28,0.00025282,2]
[309980413,1704259838070,-119.51441493,0.00025336,2]
[309980414,1704259838083,-202.29826383,0.00025336,2]
[309980415,1704259838092,-142.47164666,0.000254,2]
[309980416,1704259838339,-11.00835334,0.000254,2]
[309980417,1704259838349,-157.72055272,0.00025542,2]
[309980418,1704259838358,-153.48,0.00025671,2]
[309980419,1704259838370,-153.48,0.00025941,2]
[309980420,1704259838379,-153.48,0.00026211,2]
[309980421,1704259838389,-537.63337785,0.00026213,5]
[309980423,1704259838398,-207.0,0.00026213,2]
[309980425,1704259838407,-157.72055272,0.00026345,2]
[309980426,1704259838418,-150.0,0.00026442,2]
[309980427,1704259838429,-153.48,0.00026481,2]
[309980428,1704259838440,-477.53,0.00026507,2]
[309980429,1704259838450,-250.0,0.00026563,2]
[309980430,1704259838459,-261.435439,0.00026575,2]
[309980431,1704259838468,-223.69,0.00026629,2]
[309980432,1704259838479,-297.29921363,0.00026642,2]
[309980433,1704259838490,-507.03845072,0.00026669,2]
[309980434,1704259838500,-411.31,0.00026669,2]
[309980436,1704259838513,-153.48,0.00026752,2]
[309980438,1704259838523,-160.33,0.00026757,2]
[309980439,1704259838533,-165.38,0.00026821,2]
[309980440,1704259838542,-522.47,0.00026842,2]
[309980441,1704259838553,-159.43,0.00026888,2]
[309980442,1704259838562,-250.0,0.00027,3]
[309980443,1704259838571,-155.42,0.00027067,2]
[309980444,1704259838581,-157.72055272,0.00027149,2]
[309980445,1704259838591,-159.41,0.00027349,2]
[309980446,1704259838828,-479.27,0.00027397,15]
[309980447,1704259838838,-250.0,0.00027397,2]
[309980448,1704259838847,-154.46,0.00027397,2]
[309980449,1704259838857,-160.33,0.00027454,2]
[309980450,1704259838866,-196.97,0.00027491,2]
[309980451,1704259838875,-348.28,0.00027546,2]
[309980452,1704259838884,-154.46,0.00027601,2]
[309980453,1704259838894,-196.97,0.00027635,2]
[309980454,1704259838903,-411.31,0.00027648,2]
[309980455,1704259838912,-261.435439,0.00027671,14]
[309980456,1704259838921,-196.97,0.0002778,2]
[309980457,1704259838930,-154.46,0.00027804,2]
[309980458,1704259838940,-196.97,0.00027925,2]
[309980459,1704259838949,-5558.01,0.00027945,2]
[309980460,1704259838958,-157.72055272,0.00027953,2]
[309980461,1704259838967,-150.0,0.00028,5]
[309980462,1704259838976,-154.46,0.00028008,2]
[309980463,1704259838985,-196.97,0.00028069,2]
[309980464,1704259838994,-160.33,0.00028151,2]
[309980465,1704259839003,-154.46,0.00028211,2]
[309980466,1704259839012,-196.97,0.00028214,2]
[309980467,1704259839022,-1000.0,0.00028358,2]
[309980468,1704259839031,-196.97,0.00028359,2]
[309980469,1704259839041,-154.46,0.00028415,2]
[309980470,1704259839050,-196.97,0.00028503,2]
[309980471,1704259839060,-154.46,0.00028618,2]
[309980472,1704259839069,-411.31,0.00028626,2]
[309980473,1704259839078,-196.97,0.00028648,2]
[309980474,1704259839087,-157.72055272,0.00028757,2]
[309980475,1704259839097,-261.435439,0.00028767,14]
[309980476,1704259839106,-196.97,0.00028793,2]
[309980477,1704259839115,-154.46,0.00028822,2]
[309980478,1704259839124,-196.97,0.00028937,2]
[309980479,1704259839133,-300.0,0.00029,3]
[309980480,1704259839143,-196.97,0.00029082,2]
[309980481,1704259839153,-196.97,0.00029227,2]
[309980482,1704259839162,-196.97,0.00029371,2]
[309980483,1704259839172,-19619.49630802,0.00029505,2]
[309980484,1704259839183,-196.97,0.00029516,2]
[309980485,1704259839192,-157.72055272,0.00029561,2]
[309980486,1704259839202,-411.31,0.00029605,2]
[309980487,1704259839211,-196.97,0.00029661,2]
[309980488,1704259839220,-407.835,0.00029803,2]
[309980489,1704259839230,-196.97,0.00029805,2]
[309980490,1704259839239,-348.28,0.0002981,2]
[309980491,1704259839249,-477.53,0.0002982,2]
[309980492,1704259839259,-261.435439,0.00029863,14]
[309980493,1704259839269,-3161.11496062,0.000299,2]
[309980494,1704259839279,-159.41,0.00029922,2]
[309980495,1704259839288,-15343.57749243,0.00029948,2]
[309980496,1704259839298,-155.0,0.00029949,2]
[309980497,1704259839308,-196.97,0.0002995,2]
[309980498,1704259839318,-413.02390415,0.0002996,2]
[309980499,1704259839328,-842.79220444,0.0003,2]
[309980500,1704259839338,-155.0,0.0003,2]
[309980501,1704259839348,-300.0,0.0003,8]
[309980502,1704259839358,-142347.41448097,0.0003,2]
[309980503,1704259839367,-407.411,0.0003,2]
[309980504,1704259839377,-407.411,0.0003,2]
[309980505,1704259839387,-407.41101,0.0003,2]
[309980506,1704259839396,-407.41101,0.0003,2]
[309980507,1704259839406,-407.411,0.0003,2]
[309980508,1704259839415,-407.411,0.0003,2]
[309980509,1704259839424,-196.97,0.00030095,2]
[309980510,1704259839434,-153.84,0.00030137,2]
[309980511,1704259839444,-522.47,0.00030198,2]
[309980512,1704259839453,-196.97,0.0003024,2]
[309980513,1704259839463,-157.72055272,0.00030365,2]
[309980514,1704259839472,-176.66,0.00030459,2]
[309980515,1704259839482,-3161.11496061,0.00030575,2]
[309980516,1704259839492,-411.31,0.00030583,2]
[309980517,1704259839502,-381.0,0.000306,5]
[309980518,1704259839511,-1983.0,0.000306,2]
[309980519,1704259839522,-20208.0,0.000307,2]
[309980520,1704259839533,-261.435439,0.00030959,14]
[309980521,1704259839543,-2024.60228929,0.00031,4]
[309980522,1704259839553,-350.0,0.00031,3]
[309980523,1704259839562,-207.0,0.00031039,10]
[309980524,1704259839572,-153.84,0.0003105,2]
[309980525,1704259839582,-2244.76814375,0.000311,4]
[309980526,1704259839592,-157.72055272,0.00031168,2]
[309980527,1704259839601,-3161.11496061,0.0003125,2]
[309980528,1704259839610,-153.75,0.00031456,2]
[309980529,1704259839620,-757.85,0.00031456,2]
[309980530,1704259839629,-313.33,0.00031456,2]
[309980531,1704259839639,-313.33,0.00031456,2]
[309980532,1704259839648,-313.33,0.00031456,2]
[309980533,1704259839657,-313.33,0.00031456,2]
[309980534,1704259839667,-313.33,0.00031456,2]
[309980535,1704259839676,-313.33,0.00031456,2]
[309980536,1704259839685,-313.33,0.00031456,2]
[309980537,1704259839695,-345.40103,0.00031498,2]
[309980538,1704259839705,-411.31,0.00031562,2]
[309980539,1704259839715,-345.40103,0.00031598,2]
[309980540,1704259839725,-382.06705801,0.00031598,2]
[309980541,1704259839735,-378.7734,0.00031598,2]
[309980542,1704259839745,-622.004,0.00031599,2]
[309980543,1704259839754,-7321.0,0.00031599,2]
[309980544,1704259839763,-592.915,0.00031599,2]
[309980545,1704259839773,-5370.246,0.00031599,2]
[309980546,1704259839783,-191.682,0.00031599,2]
[309980547,1704259839792,-950.18,0.00031599,2]
[309980548,1704259839801,-1234.0,0.00031599,2]
[309980549,1704259839811,-263.714,0.00031599,2]
[309980550,1704259839821,-345.40103,0.00031698,2]
[309980551,1704259839831,-26407.3111,0.00031698,2]
[309980552,1704259839840,-2057.2007,0.00031698,2]
[309980553,1704259839850,-284.2597,0.00031698,2]
[309980554,1704259839862,-1000.0,0.00031728,2]
[309980555,1704259839871,-345.40103,0.00031798,2]
[309980556,1704259839882,-155.0,0.000318,2]
[309980557,1704259839892,-176.66,0.00031846,2]
[309980558,1704259839901,-345.40103,0.00031898,2]
[309980559,1704259839911,-3161.11496061,0.00031925,2]
[309980560,1704259839920,-159.43,0.00031946,2]
[309980561,1704259839931,-153.84,0.00031963,2]
[309980562,1704259839942,-157.72055272,0.00031972,2]
[309980563,1704259839951,-345.40103,0.00031998,2]
[309980564,1704259839961,-348.28,0.00032074,2]
[309980565,1704259839972,-151.0,0.00032085,120]
[309980566,1704259839981,-345.40103,0.00032098,2]
[309980567,1704259839990,-1558.66218845,0.00032124,2]
[309980581,1704259844548,-319.775,0.00031059,2]
[309980582,1704259844559,-278.147,0.00031059,2]
[309980583,1704259844569,-770.413,0.00031599,2]
[309980584,1704259844581,-1350.717,0.00032124,2]
[309980585,1704259844597,-272.46430999,0.00032124,2]
[309980586,1704259844628,-314.89578746,0.00032124,2]
[309980635,1704259845475,-5139.2607141,0.00032124,2]
[309980637,1704259845485,-1260.2954,0.00032154,2]
[309980638,1704259845494,-345.40103,0.00032198,2]
[309980641,1704259845505,-152.85,0.00032238,2]
[309980642,1704259845515,-177.94121501,0.00032254,7]
[309980645,1704259845528,-3190.33497824,0.00032254,7]
[309980647,1704259845538,-2912.36081888,0.00032254,7]
[309980649,1704259845549,-501.03671557,0.00032254,7]
[309980650,1704259845559,-1707.59948063,0.00032254,7]
[309980653,1704259845569,-1815.45172625,0.00032254,7]
[309980654,1704259845579,-345.40103,0.00032298,2]
[309980656,1704259845588,-345.40103,0.00032398,2]
[309980673,1704259845806,-18169.94432042,0.000324,2]
[309980676,1704259845823,-55.15077958,0.000324,2]
[309980678,1704259845834,-196.1746,0.000324,2]
[309980680,1704259845845,-159.41,0.00032494,2]
[309980681,1704259845856,-345.40103,0.00032498,2]
[309980684,1704259845865,-16466.01389771,0.000325,2]
[309980686,1704259845874,-411.31,0.0003254,2]
[309980688,1704259845883,-345.40103,0.00032598,2]
[309980690,1704259845892,-224.1052898,0.000326,6]
[309980692,1704259845900,-3161.11496061,0.000326,2]
[309980694,1704259845910,-394.26,0.0003263,2]
[309980696,1704259845919,-937.85,0.0003263,2]
[309980698,1704259845928,-937.85,0.0003263,2]
[309980700,1704259845938,-400.26,0.0003263,2]
[309980702,1704259845947,-937.85,0.0003263,2]
[309980704,1704259845956,-400.26,0.0003263,2]
[309980707,1704259845976,-937.85,0.0003263,2]
[309980709,1704259845986,-937.85,0.0003263,2]
[309980711,1704259845996,-400.26,0.0003263,2]
[309980713,1704259846005,-380.18,0.0003263,2]
[309980715,1704259846015,-937.85,0.0003263,2]
[309980717,1704259846025,-732.53,0.0003263,2]
[309980719,1704259846035,-185.7921739,0.0003269,2]
[309980721,1704259846045,-345.40103,0.00032698,2]
[309980723,1704259846054,-452.864,0.000327,2]
[309980725,1704259846064,-957.35612302,0.000327,2]
[309980729,1704259846086,-1751.01334804,0.000327,2]
[309980732,1704259846108,-37606.52212894,0.000327,2]
[309980734,1704259846118,-1873.42179523,0.000327,2]
[309980737,1704259846131,-4330.15818539,0.000327,2]
[309980742,1704259846170,-3416.65222773,0.000327,2]
[309980756,1704259846297,-419.59727266,0.00031058,4]
[309980759,1704259846309,-7.08211368,0.00031058,4]
[309980761,1704259846318,-1867.73036207,0.000327,2]
[309980763,1704259846331,-2578.82723627,0.000327,2]
[309980765,1704259846343,-495.504408,0.000327,2]
[309980767,1704259846355,-319.290005,0.000327,2]
[309980770,1704259846367,-512.2975,0.000327,2]
[309980773,1704259846379,-2549.81509918,0.000327,2]
[309980776,1704259846392,-272.2306742,0.000327,2]
[309980779,1704259846405,-10915.30620006,0.000327,2]
[309980784,1704259846426,-1627.38437286,0.000327,2]
[309980978,1704259898215,257.27,0.00029,30]
[309980979,1704259936535,171.99,0.00016712,2]
[309980980,1704260821466,2000.0,0.00029,30]
[309980990,1704261032440,-295.94496373,0.00026638,2]
[309981011,1704261038422,-948.52033737,0.00026638,2]
[309981012,1704261038433,-382.96978774,0.00026639,2]
[309981013,1704261038443,-301.34081716,0.0002664,2]
[309981014,1704261038453,-169.18207101,0.00026641,2]
[309981015,1704261038464,-736.39,0.00026664,2]
[309981016,1704261038474,-340.60746913,0.00026669,2]
[309981017,1704261038484,-157.72055272,0.000269,2]
[309981018,1704261038494,-250.0,0.00027,3]
[309981019,1704261038504,-321.81267876,0.0002755,2]
[309981020,1704261038513,-716.13,0.00028332,2]
[309981021,1704261038523,-313.45,0.0002847,2]
[309981022,1704261038533,-299.99,0.0002847,12]
[309981023,1704261038543,-499.99,0.0002847,2]
[309981024,1704261038553,-300.0,0.00029,3]